bitfinex/quotes_SOLUSD_20241121
["timestamp","ask_amount","ask_price","bid_price","bid_amount"]
[1732169199529,2.40309163,237.71,237.65,24.48794431]
[1732169199822,2.40309163,237.7,237.65,24.48794431]
[1732169200009,24.48794431,237.73,237.65,24.48794431]
[1732169200194,2.40434765,237.69,237.66,1.2623]
[1732169200398,3.24,237.75,237.68,24.48794431]
[1732169200624,2.40621862,237.74,237.67,24.48794431]
[1732169200920,2.40621862,237.74,237.66,1.2623]
[1732169200921,2.40621862,237.73,237.66,1.2623]
[1732169201127,2.40621862,237.72,237.67,24.48794431]
[1732169201302,2.40621862,237.71,237.67,24.48794431]
[1732169201509,2.40621862,237.7,237.66,1.2623]
[1732169201822,2.40621862,237.69,237.66,1.2623]
[1732169202128,2.40621862,237.69,237.63,24.48794431]
[1732169202626,2.40621862,237.69,237.68,24.48794431]
[1732169202922,2.40621862,237.74,237.66,24.48794431]
[1732169203101,2.40621862,237.73,237.66,24.48794431]
[1732169203517,2.40621862,237.73,237.6,24.48794431]
[1732169203518,2.40621862,237.72,237.68,24.48794431]
[1732169203719,2.40621862,237.72,237.6,25.75054431]
[1732169203720,2.40621862,237.71,237.7,24.48794431]
[1732169203921,2.40885631,237.71,237.7,24.48794431]
[1732169204228,2.40885631,237.74,237.7,24.48794431]
[1732169204425,2.40885631,237.73,237.72,24.48794431]
[1732169205120,2.41054798,237.79,237.73,20.0]
[1732169205307,2.41054798,237.78,237.74,12.7734]
[1732169205632,3.24,237.87,237.77,24.48794431]
[1732169205799,2.41052521,237.86,237.84,24.48794431]
[1732169206001,3.24,237.87,237.83,24.48794431]
[1732169206222,2.41061609,237.86,237.83,24.48794431]
[1732169206517,2.41061609,237.86,237.74,12.7734]
[1732169206518,2.41061609,237.85,237.74,13.2734]
[1732169206697,3.24,237.87,237.84,24.48794431]
[1732169206896,3.24,237.87,237.86,24.48794431]
[1732169207305,5.65115037,237.87,237.86,24.48794431]
[1732169207722,5.65115037,237.87,237.8,24.48794431]
[1732169207918,2.41115037,237.86,237.8,24.48794431]
[1732169208225,2.41115037,237.85,237.8,24.48794431]
[1732169208405,2.41115037,237.84,237.8,24.48794431]
[1732169208605,2.41115037,237.83,237.8,24.48794431]
[1732169208802,2.41115037,237.82,237.74,12.7734]
[1732169209022,3.24,237.87,237.74,24.48794431]
[1732169209023,2.41115037,237.81,237.74,24.48794431]
[1732169209213,24.48794431,237.83,237.74,24.48794431]
[1732169209214,2.41115037,237.8,237.74,24.48794431]
[1732169209414,2.41115037,237.79,237.76,24.48794431]
[1732169209621,2.41115037,237.78,237.76,24.48794431]
[1732169209819,2.41115037,237.77,237.76,24.48794431]
[1732169210528,2.41176751,237.77,237.76,24.48794431]
[1732169210904,2.41176751,237.84,237.76,24.48794431]
[1732169211103,26.89971182,237.83,237.76,24.48794431]
[1732169211304,24.48794431,237.81,237.72,24.48794431]
[1732169211521,2.41176751,237.8,237.72,24.48794431]
[1732169211721,2.41176751,237.79,237.72,24.48794431]
[1732169211913,2.41176751,237.78,237.72,24.48794431]
[1732169212120,2.41176751,237.77,237.72,24.48794431]
[1732169212333,2.41176751,237.76,237.74,24.48794431]
[1732169212628,2.41176751,237.75,237.74,24.48794431]
[1732169213631,24.48794431,237.83,237.74,24.48794431]
[1732169213831,24.48794431,237.85,237.76,24.48794431]
[1732169214035,24.48794431,237.81,237.72,24.48794431]
[1732169214525,2.40905509,237.8,237.72,24.48794431]
[1732169214930,2.40905509,237.79,237.72,24.48794431]
[1732169215313,26.8969994,237.79,237.7,24.48794431]
[1732169215513,2.40905509,237.78,237.7,24.48794431]
[1732169215732,2.40905509,237.77,237.7,24.48794431]
[1732169215924,2.40905509,237.76,237.7,24.48794431]
[1732169216226,2.40905509,237.75,237.7,24.48794431]
[1732169216533,2.40905509,237.74,237.67,12.8527]
[1732169216828,24.48794431,237.85,237.73,24.48794431]
[1732169217128,2.40787106,237.84,237.79,24.48794431]
[1732169217326,2.40787106,237.83,237.81,24.48794431]
[1732169217710,2.40787106,237.82,237.81,24.48794431]
[1732169218337,2.40787106,237.82,237.77,24.48794431]
[1732169218519,24.48794431,237.85,237.77,24.48794431]
[1732169218520,2.40787106,237.81,237.77,24.48794431]
[1732169218728,2.40787106,237.8,237.77,24.48794431]
[1732169218908,2.40787106,237.79,237.77,24.48794431]
[1732169219109,2.40787106,237.78,237.77,24.48794431]
[1732169219626,2.40787106,237.78,237.77,44.48794431]
[1732169219812,1.69067106,237.78,237.77,44.48794431]
[1732169220010,3.24,237.87,237.78,20.0]
[1732169220213,3.24,237.87,237.84,24.48794431]
[1732169220431,3.24,237.87,237.86,24.48794431]
[1732169220823,56.97074431,237.98,237.86,24.48794431]
[1732169221014,24.48794431,237.98,237.91,24.48794431]
[1732169221214,24.48794431,238.0,237.93,24.48794431]
[1732169221436,37.76794431,238.02,237.93,24.48794431]
[1732169221810,37.76794431,238.02,237.95,24.48794431]
[1732169222011,24.48794431,238.04,237.97,24.48794431]
[1732169222222,3.24,238.0,237.97,24.48794431]
[1732169222933,3.24,238.0,237.99,24.48794431]
[1732169223231,3.24,238.0,237.99,44.48794431]
[1732169224410,0.4691089,238.1,238.0,20.0]
[1732169224635,0.4691089,238.1,238.08,24.48794431]
[1732169225210,0.4691089,238.1,238.09,20.0]
[1732169226140,0.4691089,238.1,238.08,24.48794431]
[1732169226311,0.4691089,238.1,238.06,24.48794431]
[1732169226921,0.4691089,238.1,238.08,24.48794431]
[1732169227311,0.4691089,238.1,237.96,36.49974431]
[1732169227312,24.48794431,238.09,237.88,13.2346]
[1732169227513,24.48794431,238.02,237.93,24.48794431]
[1732169227940,24.48794431,238.04,237.95,24.48794431]
[1732169228117,24.48794431,238.06,237.97,24.48794431]
[1732169228550,24.48794431,238.04,237.97,24.48794431]
[1732169229344,24.48794431,238.02,237.94,24.48794431]
[1732169229931,24.48794431,238.02,237.92,24.48794431]
[1732169230120,24.48794431,237.96,237.88,24.48794431]
[1732169230521,24.48794431,237.96,237.88,23.48794431]
[1732169230945,24.48794431,237.98,237.88,23.48794431]
[1732169231149,24.48794431,237.98,237.9,24.48794431]
[1732169231827,24.48794431,238.06,237.96,24.48794431]
[1732169232028,2.39881116,238.05,238.02,24.48794431]
[1732169232229,2.39881116,238.04,238.02,24.48794431]
[1732169232419,2.39881116,238.03,238.02,24.48794431]
[1732169232738,2.39881116,238.09,238.02,24.48794431]
[1732169233038,24.95705321,238.1,238.02,24.48794431]
[1732169233039,2.39881116,238.08,238.02,24.48794431]
[1732169233339,24.95705321,238.1,238.02,24.48794431]
[1732169233540,24.48794431,238.08,238.0,24.48794431]
[1732169233839,2.39973946,238.07,238.0,24.48794431]
[1732169234351,24.48794431,238.04,237.96,24.48794431]
[1732169234520,24.48794431,238.02,237.95,20.0]
[1732169234728,2.39961818,238.01,237.96,24.48794431]
[1732169234921,2.39961818,238.0,237.96,24.48794431]
[1732169235132,2.39961818,237.99,237.96,24.48794431]
[1732169235449,2.39961818,237.98,237.96,24.48794431]
[1732169235625,2.39961818,238.02,237.96,24.48794431]
[1732169235825,2.39961818,238.01,237.96,24.48794431]
[1732169236138,2.39961818,238.0,237.94,24.48794431]
[1732169237542,2.39961818,237.99,237.96,24.48794431]
[1732169237862,2.39961818,237.98,237.94,24.48794431]
[1732169238046,2.39961818,238.02,237.96,24.48794431]
[1732169238251,2.39961818,238.01,237.96,44.48794431]
[1732169238434,2.39961818,238.0,237.96,24.48794431]
[1732169238636,2.39961818,237.99,237.96,24.48794431]
[1732169238945,2.39961818,237.98,237.96,24.48794431]
[1732169239117,2.39961818,237.97,237.96,44.48794431]
[1732169239517,2.39961818,238.02,237.96,44.48794431]
[1732169239720,2.39961818,238.01,237.96,44.48794431]
[1732169239947,2.39961818,238.0,237.96,44.48794431]
[1732169240242,24.48794431,238.03,237.96,44.48794431]
[1732169240632,2.4091119,238.02,237.96,44.48794431]
[1732169240832,2.4091119,238.01,237.96,44.48794431]
[1732169241030,2.4091119,238.0,237.96,44.48794431]
[1732169241231,2.4091119,237.99,237.96,44.48794431]
[1732169241428,2.4091119,237.98,237.96,24.48794431]
[1732169241639,2.4091119,237.98,237.9,24.48794431]
[1732169241640,2.4091119,237.97,237.9,24.48794431]
[1732169241837,2.4091119,237.96,237.9,24.48794431]
[1732169242042,2.4091119,237.95,237.9,24.48794431]
[1732169242350,2.4091119,237.94,237.92,24.48794431]
[1732169242545,2.4091119,237.93,237.92,24.48794431]
[1732169243348,2.4091119,237.93,237.9,24.48794431]
[1732169243545,2.4091119,237.92,237.9,24.48794431]
[1732169243843,24.48794431,237.98,237.9,24.48794431]
[1732169244150,2.41083873,237.97,237.9,24.48794431]
[1732169244450,2.41083873,237.96,237.9,24.48794431]
[1732169244748,2.41083873,237.95,237.9,24.48794431]
[1732169245042,24.48794431,237.92,237.82,12.3719]
[1732169245250,24.48794431,237.92,237.72,0.5]
[1732169245251,24.48794431,237.89,237.8,24.48794431]
[1732169245459,24.48794431,237.87,237.78,24.48794431]
[1732169245757,2.41083873,237.86,237.78,24.48794431]
[1732169245934,26.89878304,237.85,237.76,24.48794431]
[1732169246449,26.89878304,237.85,237.63,0.5]
[1732169246450,23.776884,237.82,237.74,24.48794431]
[1732169246648,24.48794431,237.79,237.7,24.48794431]
[1732169246865,24.48794431,237.77,237.68,13.1562]
[1732169247142,2.41255606,237.76,237.69,24.48794431]
[1732169247340,2.41255606,237.75,237.69,24.48794431]
[1732169247845,24.48794431,237.77,237.69,24.48794431]
[1732169247846,2.41255606,237.74,237.69,24.48794431]
[1732169248066,2.41255606,237.73,237.69,24.48794431]
[1732169248219,2.41255606,237.72,237.71,24.48794431]
[1732169248846,2.41255606,237.72,237.69,24.48794431]
[1732169249044,2.41255606,237.71,237.69,24.48794431]
[1732169249260,2.41255606,237.76,237.69,24.48794431]
[1732169249460,2.41255606,237.75,237.71,24.48794431]
[1732169249752,2.41255606,237.74,237.73,24.48794431]
[1732169250433,0.5,237.85,237.71,24.48794431]
[1732169250434,24.48794431,237.79,237.71,24.48794431]
[1732169250833,2.41368386,237.74,237.71,24.48794431]
[1732169251046,2.41368386,237.73,237.69,24.48794431]
[1732169251251,2.41368386,237.76,237.69,24.48794431]
[1732169251454,26.90162817,237.75,237.67,24.48794431]
[1732169251755,2.41368386,237.74,237.67,24.48794431]
[1732169252061,26.90162817,237.73,237.65,24.48794431]
[1732169252236,2.41368386,237.72,237.65,24.48794431]
[1732169252436,2.41368386,237.71,237.65,24.48794431]
[1732169252763,2.41368386,237.7,237.65,24.48794431]
[1732169252965,2.41368386,237.69,237.67,24.48794431]
[1732169253153,2.41368386,237.68,237.67,24.48794431]
[1732169253659,2.08148386,237.68,237.67,24.48794431]
[1732169254044,24.48794431,237.77,237.67,24.48794431]
[1732169254347,23.98794431,237.75,237.67,24.48794431]
[1732169254553,23.776884,237.74,237.67,24.48794431]
[1732169255757,24.48794431,237.73,237.65,24.48794431]
[1732169255964,23.776884,237.7,237.63,24.48794431]
[1732169256348,24.48794431,237.69,237.61,24.48794431]
[1732169256658,48.26482831,237.68,237.51,33.2782]
[1732169256865,23.776884,237.67,237.6,24.48794431]
[1732169258249,23.776884,237.65,237.56,24.48794431]
[1732169258456,24.48794431,237.64,237.56,24.48794431]
[1732169258837,23.776884,237.67,237.6,24.48794431]
[1732169259044,24.48794431,237.68,237.6,24.48794431]
[1732169259367,31.9223,237.72,237.64,24.48794431]
[1732169259368,23.776884,237.69,237.64,24.48794431]
[1732169259541,23.776884,237.71,237.64,24.48794431]
[1732169259743,23.776884,237.71,237.66,24.48794431]
[1732169259966,23.776884,237.71,237.64,24.48794431]
[1732169260266,23.776884,237.71,237.66,24.48794431]
[1732169260467,24.48794431,237.72,237.64,24.48794431]
[1732169260642,23.776884,237.73,237.66,24.48794431]
[1732169260971,27.72794431,237.74,237.66,24.48794431]
[1732169261359,24.48794431,237.68,237.59,24.48794431]
[1732169262165,24.48794431,237.66,237.59,24.48794431]
[1732169262473,23.776884,237.65,237.57,24.48794431]
[1732169262845,24.48794431,237.66,237.57,24.48794431]
[1732169263041,23.776884,237.65,237.57,24.48794431]
[1732169263548,23.776884,237.63,237.55,24.48794431]
[1732169263944,24.48794431,237.62,237.55,24.48794431]
[1732169264959,23.776884,237.63,237.57,24.48794431]
[1732169265165,23.776884,237.65,237.57,24.48794431]
[1732169265471,23.776884,237.67,237.59,24.48794431]
[1732169265969,24.48794431,237.68,237.59,24.48794431]
[1732169266268,24.48794431,237.68,237.61,24.48794431]
[1732169266768,3.24,237.74,237.61,24.48794431]
[1732169266769,24.48794431,237.7,237.61,24.48794431]
[1732169266969,23.776884,237.69,237.61,24.48794431]
[1732169267964,24.48794431,237.72,237.63,24.48794431]
[1732169268274,27.72794431,237.74,237.67,24.48794431]
[1732169268485,3.24,237.74,237.6,24.48794431]
[1732169268648,3.24,237.74,237.67,24.48794431]
[1732169269277,3.24,237.74,237.69,24.48794431]
[1732169270166,3.24,237.74,237.71,24.48794431]
[1732169270376,3.24,237.74,237.73,24.48794431]
[1732169270853,24.48794431,237.84,237.73,24.48794431]
[1732169271055,24.48794431,237.84,237.63,12.7034]
[1732169271056,24.48794431,237.84,237.76,24.48794431]
[1732169271463,24.48794431,237.84,237.74,24.48794431]
[1732169272552,24.48794431,237.82,237.74,24.48794431]
[1732169272762,23.776884,237.79,237.72,24.48794431]
[1732169273459,23.776884,237.77,237.69,24.48794431]
[1732169273871,24.48794431,237.84,237.76,24.48794431]
[1732169274083,24.48794431,237.82,237.72,24.48794431]
[1732169274256,24.48794431,237.8,237.72,24.48794431]
[1732169275060,23.776884,237.79,237.72,24.48794431]
[1732169276253,23.776884,237.79,237.7,24.48794431]
[1732169276450,24.48794431,237.76,237.68,24.48794431]
[1732169276681,23.776884,237.75,237.68,24.48794431]
[1732169277376,24.48794431,237.76,237.68,24.48794431]
[1732169277557,24.48794431,237.74,237.66,24.48794431]
[1732169277757,23.776884,237.73,237.66,24.48794431]
[1732169278268,24.48794431,237.72,237.64,24.48794431]
[1732169278473,23.776884,237.71,237.64,24.48794431]
[1732169278770,23.776884,237.73,237.66,24.48794431]
[1732169280366,24.48794431,237.72,237.63,36.69134431]
[1732169280555,24.48794431,237.7,237.63,36.69134431]
[1732169280759,23.776884,237.69,237.63,24.48794431]
[1732169281378,23.776884,237.73,237.65,24.48794431]
[1732169281953,23.776884,237.71,237.65,24.48794431]
[1732169282575,23.776884,237.73,237.65,24.48794431]
[1732169282782,23.776884,237.73,237.6,24.48794431]
[1732169282783,23.776884,237.73,237.69,24.48794431]
[1732169282991,21.74742816,237.77,237.69,24.48794431]
[1732169283378,24.48794431,237.78,237.69,24.48794431]
[1732169283676,24.48794431,237.8,237.71,24.48794431]
[1732169284181,0.5,237.8,237.6,20.0]
[1732169284356,24.48794431,237.72,237.64,24.48794431]
[1732169284680,24.48794431,237.74,237.66,24.48794431]
[1732169285255,37.91424431,237.84,237.68,24.48794431]
[1732169285460,24.48794431,237.78,237.7,24.48794431]
[1732169285854,24.48794431,237.82,237.74,24.48794431]
[1732169286060,24.48794431,237.84,237.76,24.48794431]
[1732169286287,13.8125,237.91,237.78,24.48794431]
[1732169286288,24.48794431,237.86,237.78,24.48794431]
[1732169286879,24.48794431,237.88,237.8,24.48794431]
[1732169287069,24.48794431,237.88,237.78,24.48794431]
[1732169287475,24.48794431,237.84,237.76,24.48794431]
[1732169287889,24.48794431,237.86,237.78,24.48794431]
[1732169289596,23.776884,237.83,237.76,24.48794431]
[1732169289974,24.48794431,237.86,237.78,24.48794431]
[1732169290289,23.776884,237.85,237.78,24.48794431]
[1732169290975,23.776884,237.85,237.8,24.48794431]
[1732169291183,23.776884,237.86,237.82,24.48794431]
[1732169291576,23.776884,237.86,237.8,24.48794431]
[1732169291795,48.26482831,237.86,237.78,24.48794431]
[1732169292102,23.776884,237.78,237.72,42.116]
[1732169292781,23.776884,237.78,237.69,24.48794431]
[1732169293286,23.776884,237.8,237.71,24.48794431]
[1732169293671,23.776884,237.8,237.73,24.48794431]
[1732169294092,24.48794431,237.85,237.77,24.48794431]
[1732169294799,3.24,237.87,237.81,24.48794431]
[1732169297202,24.48794431,237.85,237.7,20.0]
[1732169297495,24.48794431,237.85,237.78,24.48794431]
[1732169298079,3.24,237.87,237.84,24.48794431]
[1732169298275,3.24,237.87,237.82,24.48794431]
[1732169298476,23.776884,237.86,237.8,24.48794431]
[1732169298701,3.24,237.87,237.82,24.48794431]
[1732169300380,3.24,237.87,237.8,24.48794431]
[1732169301507,23.776884,237.86,237.78,24.48794431]
[1732169301804,48.26482831,237.86,237.78,24.48794431]
[1732169302008,48.26482831,237.86,237.76,24.48794431]
[1732169302317,24.48794431,237.84,237.76,24.48794431]
[1732169302608,23.776884,237.83,237.76,24.48794431]
[1732169303187,23.776884,237.83,237.66,13.0686]
[1732169303188,24.48794431,237.82,237.74,24.48794431]
[1732169303380,23.776884,237.81,237.74,24.48794431]
[1732169304298,23.776884,237.79,237.72,24.48794431]
[1732169304880,23.776884,237.81,237.74,24.48794431]
[1732169305309,23.776884,237.83,237.76,24.48794431]
[1732169306187,23.776884,237.81,237.74,24.48794431]
[1732169306601,24.48794431,237.8,237.66,12.5686]
[1732169306779,23.776884,237.79,237.72,15.25665082]
[1732169307181,23.776884,237.79,237.74,15.25665082]
[1732169307584,23.776884,237.81,237.74,15.25665082]
[1732169308303,23.776884,237.79,237.72,15.25665082]
[1732169309901,21.03945842,237.75,237.6,20.0]
[1732169310104,21.40835683,237.73,237.56,70.0]
[1732169310298,21.73682148,237.71,237.61,20.0]
[1732169310486,21.91268387,237.69,237.61,20.0]
[1732169310690,21.21684465,237.67,237.61,20.0]
[1732169310894,27.40639591,237.65,237.61,20.0]
[1732169311090,6.39121673,237.65,237.61,20.0]
[1732169311295,40.22854552,237.66,237.64,15.25665082]
[1732169311495,6.39209784,237.66,237.64,15.25665082]
[1732169311713,12.78243346,237.7,237.64,15.25665082]
[1732169312016,12.78243346,237.7,237.62,0.63091436]
[1732169312017,21.90559618,237.77,237.69,15.25665082]
[1732169312183,21.90559618,237.77,237.69,4.77e-06]
[1732169312795,21.10420624,237.78,237.69,4.77e-06]
[1732169312997,27.52261601,237.74,237.68,1.78e-06]
[1732169313200,27.52261601,237.74,237.73,15.25665082]
[1732169314011,27.52261601,237.74,237.71,15.25665082]
[1732169314615,27.52261601,237.74,237.68,1.78e-06]
[1732169314616,28.02261601,237.74,237.68,1.78e-06]
[1732169314783,28.02261601,237.74,237.68,15.2566526]
[1732169315390,0.5,237.72,237.68,1.78e-06]
[1732169315591,0.5,237.7,237.68,1.78e-06]
[1732169317216,21.73682148,237.71,237.68,1.78e-06]
[1732169317803,0.5,237.7,237.68,1.78e-06]
[1732169318497,21.51298771,237.72,237.66,15.25665082]
[1732169318707,0.5,237.69,237.64,15.25665082]
[1732169320107,21.32641473,237.7,237.64,15.25665082]
[1732169320293,0.5,237.69,237.64,15.25665082]
[1732169321008,0.5,237.67,237.6,15.25665082]
[1732169321189,0.5,237.67,237.61,20.0]
[1732169321390,0.5,237.64,237.58,15.25665082]
[1732169321687,0.5,237.62,237.54,15.25665082]
[1732169321895,1.0,237.62,237.54,15.25665082]
[1732169322204,1.0,237.6,237.52,15.25665082]
[1732169322414,0.5,237.58,237.52,15.25665082]
[1732169323521,2.43646262,237.57,237.53,20.0]
[1732169323815,2.43646262,237.56,237.53,20.0]
[1732169324011,2.43646262,237.55,237.53,20.0]
[1732169324192,2.43646262,237.54,237.53,20.0]
[1732169324399,1.97706262,237.54,237.53,20.0]
[1732169324595,1.88526262,237.54,237.53,20.0]
[1732169324811,1.79346262,237.54,237.53,20.0]
[1732169325011,1.79346262,237.54,237.53,35.25665082]
[1732169325398,21.5032508,237.64,237.53,35.25665082]
[1732169325599,21.5032508,237.64,237.59,15.25665082]
[1732169326209,21.51517918,237.65,237.6,13.60404258]
[1732169326920,0.5,237.68,237.63,2.14e-06]
[1732169327216,21.21684465,237.67,237.63,2.14e-06]
[1732169327802,0.5,237.65,237.61,2.14e-06]
[1732169328007,1.0,237.65,237.6,15.25665082]
[1732169329124,0.5,237.65,237.6,15.25665082]
[1732169329506,15.75665082,237.67,237.6,15.25665082]
[1732169329709,0.5,237.67,237.63,15.25665082]
[1732169330002,0.5,237.67,237.61,15.25665082]
[1732169332011,16.25665082,237.67,237.58,15.25665082]
[1732169332322,16.25665082,237.67,237.6,15.25665082]
[1732169332616,16.25665082,237.67,237.58,15.25665082]
[1732169333218,1.0,237.67,237.6,15.25665082]
[1732169333418,0.5,237.67,237.6,15.25665082]
[1732169334915,1.0,237.72,237.65,11.2795564]
[1732169335114,47.98605082,237.73,237.65,11.2795564]
[1732169335115,0.5,237.7,237.65,11.2795564]
[1732169335504,0.5,237.7,237.63,15.25665082]
[1732169336033,15.75665082,237.69,237.61,15.25665082]
[1732169337400,0.5,237.7,237.61,15.25665082]
[1732169337607,0.5,237.7,237.63,15.25665082]
[1732169339319,0.5,237.69,237.63,15.25665082]
[1732169339526,0.5,237.64,237.55,3.93373839]
[1732169339709,0.5,237.64,237.55,15.25665082]
[1732169340033,0.5,237.63,237.55,15.25665082]
[1732169340526,0.5,237.64,237.59,15.25665082]
[1732169341104,0.5,237.64,237.57,15.25665082]
[1732169341522,0.5,237.67,237.61,15.25665082]
[1732169341700,0.5,237.69,237.58,4.51151617]
[1732169341905,0.5,237.67,237.61,15.25665082]
[1732169342608,0.5,237.65,237.59,15.25665082]
[1732169342819,1.0,237.67,237.59,15.25665082]
[1732169344018,0.5,237.69,237.61,15.25665082]
[1732169344335,0.5,237.68,237.61,15.25665082]
[1732169344531,0.5,237.67,237.61,15.25665082]
[1732169344911,15.75665082,237.68,237.61,15.25665082]
[1732169345112,0.5,237.69,237.61,15.25665082]
[1732169345308,0.5,237.67,237.61,15.25665082]
[1732169346437,0.5,237.7,237.63,15.25665082]
[1732169346933,0.5,237.71,237.65,15.25665082]
[1732169347226,0.5,237.7,237.65,15.25665082]
[1732169347436,0.5,237.69,237.63,15.25665082]
[1732169348918,1.0,237.69,237.63,15.25665082]
[1732169349324,0.5,237.66,237.61,15.25665082]
[1732169349520,0.5,237.66,237.59,15.25665082]
[1732169349719,0.5,237.66,237.6,20.0]
[1732169350925,15.75665082,237.7,237.61,15.25665082]
[1732169351114,0.5,237.69,237.63,15.25665082]
[1732169351633,0.5,237.7,237.65,15.25665082]
[1732169351811,0.5,237.72,237.69,15.25665082]
[1732169352013,21.12434882,237.74,237.71,2.35e-06]
[1732169352234,15.256651,237.71,237.68,4.51151617]
[1732169352432,21.12434882,237.74,237.71,6e-07]
[1732169352636,21.12434882,237.74,237.67,0.63083719]
[1732169352837,21.12434882,237.74,237.73,2.35e-06]
[1732169353010,3.24,237.75,237.73,0.7979116]
[1732169353217,0.5,237.84,237.74,15.25665082]
[1732169353524,0.5,237.84,237.8,15.25665082]
[1732169353711,15.256651,237.83,237.8,15.25665082]
[1732169353917,15.256651,237.83,237.78,15.25665082]
[1732169354318,15.256651,237.83,237.67,4.1795962]
[1732169354521,15.256651,237.83,237.77,15.25665082]
[1732169354729,15.256651,237.83,237.81,15.25665082]
[1732169354927,0.5,237.88,237.81,15.25665082]
[1732169355125,0.5,237.88,237.84,15.25665082]
[1732169355443,0.5,237.91,237.84,15.25665082]
[1732169355643,0.5,237.92,237.86,15.25665082]
[1732169355815,45.653,237.94,237.86,15.25665082]
[1732169356018,45.653,237.94,237.88,15.25665082]
[1732169357038,46.153,237.94,237.88,15.25665082]
[1732169357227,0.5,237.94,237.88,15.25665082]
[1732169357432,1.0,237.96,237.9,15.25665082]
[1732169357739,15.256651,237.93,237.9,15.25665082]
[1732169359130,0.5,237.96,237.9,15.25665082]
[1732169359547,1.0,237.98,237.9,15.25665082]
[1732169359750,0.5,237.96,237.9,15.25665082]
[1732169360620,0.5,237.95,237.9,15.25665082]
[1732169361036,0.5,237.93,237.88,15.25665082]
[1732169361235,0.5,237.91,237.84,15.25665082]
[1732169361428,0.5,237.9,237.84,15.25665082]
[1732169361934,0.5,237.86,237.82,15.25665082]
[1732169362153,0.5,237.87,237.82,15.25665082]
[1732169362357,0.5,237.86,237.82,15.25665082]
[1732169362534,0.5,237.88,237.82,15.25665082]
[1732169362853,0.5,237.88,237.75,13.0719]
[1732169362854,0.5,237.9,237.84,15.25665082]
[1732169363154,15.25665082,237.92,237.75,13.0719]
[1732169363155,0.5,237.92,237.86,15.25665082]
[1732169363327,0.5,237.92,237.88,15.25665082]
[1732169363533,0.5,237.92,237.86,15.25665082]
[1732169363955,0.5,237.92,237.88,15.25665082]
[1732169365039,0.5,237.89,237.75,13.0719]
[1732169365246,0.5,237.89,237.85,20.0]
[1732169365441,0.5,237.91,237.85,20.0]
[1732169365755,0.5,237.91,237.86,15.25665082]
[1732169365945,0.5,237.92,237.86,15.25665082]
[1732169366546,0.5,237.91,237.86,15.25665082]
[1732169367236,0.5,237.89,237.84,15.25665082]
[1732169367561,0.5,237.88,237.82,15.25665082]
[1732169367740,0.5,237.87,237.82,15.25665082]
[1732169368155,0.5,237.88,237.82,15.25665082]
[1732169368739,0.5,237.87,237.82,15.25665082]
[1732169368938,0.5,237.86,237.82,15.25665082]
[1732169369138,0.5,237.86,237.75,13.0719]
[1732169369139,0.5,237.84,237.78,15.25665082]
[1732169369367,0.5,237.83,237.78,15.25665082]
[1732169369661,0.5,237.83,237.76,15.25665082]
[1732169370065,0.5,237.8,237.76,15.25665082]
[1732169370245,0.5,237.8,237.74,15.25665082]
[1732169370457,1.0,237.8,237.74,15.25665082]
[1732169370957,0.5,237.8,237.74,15.25665082]
[1732169371340,1.0,237.8,237.74,15.25665082]
[1732169372982,32.5077,237.86,237.69,12.3607]
[1732169372983,0.5,237.84,237.78,15.25665082]
[1732169373166,33.5077,237.86,237.78,15.25665082]
[1732169373543,33.5077,237.86,237.8,15.25665082]
[1732169373954,0.5,237.86,237.82,15.25665082]
[1732169374154,13.093,237.88,237.82,15.25665082]
[1732169374772,1.0,237.88,237.82,15.25665082]
[1732169375473,0.5,237.88,237.82,15.25665082]
[1732169375972,0.5,237.87,237.82,15.25665082]
[1732169376172,0.5,237.87,237.72,15.25665082]
[1732169376173,0.5,237.87,237.8,15.25665082]
[1732169376668,0.5,237.87,237.82,15.25665082]
[1732169377043,0.5,237.88,237.82,15.25665082]
[1732169377250,0.5,237.87,237.82,15.25665082]
[1732169378067,0.5,237.88,237.82,15.25665082]
[1732169378365,1.0,237.88,237.82,15.25665082]
[1732169378573,0.5,237.85,237.78,15.25665082]
[1732169378864,1.0,237.83,237.78,15.25665082]
[1732169379054,0.5,237.83,237.78,15.25665082]
[1732169379253,1.0,237.83,237.78,15.25665082]
[1732169379461,0.5,237.83,237.78,15.25665082]
[1732169379671,1.0,237.85,237.78,15.25665082]
[1732169380345,0.5,237.83,237.78,15.25665082]
[1732169380551,0.5,237.85,237.8,15.25665082]
[1732169380869,0.5,237.87,237.8,15.25665082]
[1732169381062,1.0,237.89,237.84,15.25665082]